[Event "19th IPCA WCC 2019"]
[Site "Ruzomberok"]
[Date "2019.07.01"]
[Round "4.6"]
[White "Juvan, Jaka"]
[Black "Sovetov, Oleksandr"]
[Result "1/2-1/2"]
[ECO "B90"]
[WhiteElo "2168"]
[BlackElo "2009"]
[Annotator "NA"]
[PlyCount "114"]
[EventDate "2019.06.28"]
[EventType "swiss"]
[EventCountry "SVK"]
[SourceTitle "playchess.com"]
[Source "ChessBase"]
[SourceQuality "1"]
[TimeControl "5400+30"]

1. e4 {[%emt 0:00:00]} c5 {[%emt 0:00:00]} 2. Nf3 {[%emt 0:00:00]} d6 {[%emt 0:00:00]} 3. d4 {[%emt 0:00:00]} cxd4 {[%emt 0:00:02]} 4. Nxd4 {[%emt 0:00:00]} Nf6 {[%emt 0:00:10]} 5. Nc3 {[%emt 0:00:00]} a6 {[%emt 0:00:10]} 6. h3 {[%emt 0:01:23]} e5 {[%emt 0:00:41]} 7. Nb3 {[%emt 0:00:06]} Be6 {[%emt 0:00:43]} 8. f4 {[%emt 0:01:09]} Qc7 {[%emt 0:03:02]} 9. Qf3 {[%emt 0:07:55]} Nbd7 {[%emt 0:04:16]} 10. Be3 {[%emt 0:00:22]} Be7 {[%emt 0:05:47]} 11. O-O-O {[%emt 0:06:33]} b5 {[%emt 0:06:12]} 12. Kb1 {[%emt 0:09:08]} O-O {[%emt 0:09:26]} 13. g4 {[%emt 0:03:07]} exf4 {[%emt 0:04:17]} 14. Qxf4 {[%emt 0:03:49]} Ne5 {[%emt 0:09:10]} 15. g5 {[%emt 0:04:23]} Nfd7 {[%emt 0:03:13]} 16. Nd4 {[%emt 0:01:43]} b4 {[%emt 0:17:22]} 17. Nd5 {[%emt 0:02:45]} Bxd5 {[%emt 0:00:13]} 18. exd5 {[%emt 0:00:01]} a5 {[%emt 0:02:47]} 19. h4 {[%emt 0:05:23]} Nc5 {[%emt 0:04:38]} 20. h5 {[%emt 0:01:47]} Qb6 {[%emt 0:11:59]} 21. Bb5 {[%emt 0:06:28]} a4 {[%emt 0:02:12]} 22. Bc6 {[%emt 0:00:13]} Ra5 {[%emt 0:04:47]} 23. Nf5 {[%emt 0:00:56]} Ra7 {[%emt 0:03:22]} 24. Bxc5 {[%emt 0:03:13]} Qxc5 {[%emt 0:00:38]} 25. Nxe7+ {[%emt 0:00:08]} Rxe7 {[%emt 0:00:03]} 26. Bxa4 {[%emt 0:00:01]} Nc4 {[%emt 0:03:39]} 27. Rd4 {[%emt 0:02:43]} Nb6 {[%emt 0:02:39]} 28. Bc6 {[%emt 0:00:18]} Re5 {[%emt 0:00:42]} 29. Rhd1 {[%emt 0:01:35]} Rc8 {[%emt 0:00:46]} 30. Qg4 {[%emt 0:01:04]} Rf8 {[%emt 0:01:00]} 31. g6 {[%emt 0:00:40]} fxg6 {[%emt 0:00:48]} 32. hxg6 {[%emt 0:00:06]} h5 {[%emt 0:00:18]} 33. Qh4 {[%emt 0:05:48]} Rf6 {[%emt 0:00:25]} 34. Re4 {[%emt 0:03:09]} Rxg6 {[%emt 0:01:01]} 35. Rxe5 {[%emt 0:00:43]} dxe5 {[%emt 0:00:03]} 36. Qxh5 {[%emt 0:04:17]} Rg1 {[%emt 0:00:38]} 37. b3 {[%emt 0:12:00]} Qd4 {[%emt 0:00:34]} 38. Rxg1 {[%emt 0:00:29]} Qxg1+ {[%emt 0:00:07]} 39. Kb2 {[%emt 0:00:05]} Qd4+ {[%emt 0:00:26]} 40. Kc1 {[%emt 0:00:01]} Nxd5 {[%emt 0:01:08]} 41. Qe8+ {[%emt 0:00:53]} Kh7 {[%emt 0:00:02]} 42. Bb5 {[%emt 0:00:13]} Nf6 {[%emt 0:01:01]} 43. Qe6 {[%emt 0:01:00]} Qa1+ {[%emt 0:00:28]} 44. Kd2 {[%emt 0:00:16]} Ne4+ {[%emt 0:00:26]} 45. Ke2 {[%emt 0:00:42]} Nc3+ {[%emt 0:00:21]} 46. Kf2 {[%emt 0:00:02]} Nxb5 {[%emt 0:00:38]} 47. Qh3+ {[%emt 0:00:02]} Kg6 {[%emt 0:00:35]} 48. Qd3+ {[%emt 0:00:09]} Kf6 {[%emt 0:00:30]} 49. Qxb5 {[%emt 0:00:08]} Qd4+ {[%emt 0:00:20]} 50. Ke2 {[%emt 0:00:29]} g5 {[%emt 0:00:39]} 51. Qc6+ {[%emt 0:00:40]} Kf5 {[%emt 0:00:16]} 52. Qc8+ {[%emt 0:00:01]} Kf4 {[%emt 0:00:44]} 53. Qf8+ {[%emt 0:00:08]} Kg4 {[%emt 0:00:33]} 54. Qf3+ {[%emt 0:00:23]} Kh4 {[%emt 0:00:31]} 55. Qh1+ {[%emt 0:00:42]} Kg3 {[%emt 0:00:07]} 56. Qf3+ {[%emt 0:00:11]} Kh2 57. Qh5+ Qh4 1/2-1/2

[Event "19th IPCA WCC 2019"]
[Site "Ruzomberok"]
[Date "2019.07.01"]
[Round "4.7"]
[White "Gedgafov, Chamal"]
[Black "Zavarsky, Juraj"]
[Result "1-0"]
[ECO "E45"]
[WhiteElo "2163"]
[BlackElo "2000"]
[Annotator "NA"]
[PlyCount "119"]
[EventDate "2019.06.28"]
[EventType "swiss"]
[EventCountry "SVK"]
[SourceTitle "playchess.com"]
[Source "ChessBase"]
[SourceQuality "1"]
[TimeControl "5400+30"]

1. d4 {[%emt 0:00:00]} Nf6 {[%emt 0:04:59]} 2. c4 {[%emt 0:00:00]} e6 {[%emt 0:00:36]} 3. Nc3 {[%emt 0:00:00]} Bb4 {[%emt 0:00:32]} 4. e3 {[%emt 0:00:12]} b6 {[%emt 0:00:34]} 5. Nge2 {[%emt 0:00:15]} Ba6 {[%emt 0:01:08]} 6. a3 {[%emt 0:00:19]} Bxc3+ {[%emt 0:01:30]} 7. Nxc3 {[%emt 0:00:10]} d5 {[%emt 0:04:36]} 8. Be2 {[%emt 0:10:04]} O-O {[%emt 0:10:23]} 9. cxd5 {[%emt 0:12:36]} exd5 {[%emt 0:02:35]} 10. Bxa6 {[%emt 0:04:33]} Nxa6 {[%emt 0:00:06]} 11. O-O {[%emt 0:00:12]} c5 {[%emt 0:09:24]} 12. Qd3 {[%emt 0:01:37]} Nc7 {[%emt 0:07:37]} 13. a4 {[%emt 0:02:49]} Qd7 {[%emt 0:02:49]} 14. b3 {[%emt 0:02:05]} cxd4 {[%emt 0:03:27]} 15. exd4 {[%emt 0:00:59]} Rfe8 {[%emt 0:04:39]} 16. f3 {[%emt 0:00:37]} h6 {[%emt 0:00:45]} 17. Bf4 {[%emt 0:01:15]} a6 {[%emt 0:04:42]} 18. Be5 {[%emt 0:02:15]} Re6 {[%emt 0:05:07]} 19. Rac1 {[%emt 0:04:55]} Nfe8 {[%emt 0:09:40]} 20. f4 {[%emt 0:04:16]} f6 {[%emt 0:01:48]} 21. Bxc7 {[%emt 0:10:26]} Nxc7 {[%emt 0:00:44]} 22. f5 {[%emt 0:00:54]} Re7 {[%emt 0:04:01]} 23. Rfe1 {[%emt 0:01:18]} Rae8 {[%emt 0:00:15]} 24. Rxe7 {[%emt 0:02:06]} Rxe7 {[%emt 0:00:50]} 25. Kf2 {[%emt 0:01:56]} Qd6 {[%emt 0:03:49]} 26. g3 {[%emt 0:00:21]} Qa3 {[%emt 0:00:55]} 27. Qc2 {[%emt 0:02:54]} b5 {[%emt 0:02:16]} 28. Nb1 {[%emt 0:03:35]} Qd6 {[%emt 0:00:24]} 29. Qc5 {[%emt 0:00:29]} Qd7 {[%emt 0:00:12]} 30. g4 {[%emt 0:00:55]} bxa4 {[%emt 0:00:56]} 31. bxa4 {[%emt 0:00:19]} Ne8 {[%emt 0:03:20]} 32. Nc3 {[%emt 0:00:33]} Nc7 {[%emt 0:01:23]} 33. Ne2 {[%emt 0:01:15]} Kf7 {[%emt 0:00:34]} 34. Qb6 {[%emt 0:07:12]} Ne8 {[%emt 0:01:19]} 35. Qc6 {[%emt 0:03:08]} Qxc6 {[%emt 0:03:08]} 36. Rxc6 {[%emt 0:00:09]} Nc7 {[%emt 0:00:05]} 37. Nf4 {[%emt 0:02:36]} Ke8 {[%emt 0:00:20]} 38. Kf3 {[%emt 0:00:44]} Kd8 {[%emt 0:00:57]} 39. Ne6+ {[%emt 0:03:24]} Nxe6 {[%emt 0:01:08]} 40. fxe6 {[%emt 0:00:08]} a5 {[%emt 0:00:14]} 41. Rd6+ {[%emt 0:01:53]} Kc7 {[%emt 0:00:15]} 42. Rxd5 {[%emt 0:00:11]} Rxe6 {[%emt 0:00:20]} 43. Rxa5 {[%emt 0:00:12]} Kb6 {[%emt 0:00:48]} 44. Rb5+ {[%emt 0:00:20]} Kc7 {[%emt 0:00:23]} 45. Kf4 {[%emt 0:00:41]} Ra6 {[%emt 0:00:42]} 46. a5 {[%emt 0:00:25]} g6 {[%emt 0:00:57]} 47. h4 {[%emt 0:00:16]} Kc6 {[%emt 0:01:38]} 48. Rc5+ {[%emt 0:00:12]} Kd6 {[%emt 0:00:18]} 49. h5 {[%emt 0:00:12]} gxh5 {[%emt 0:00:10]} 50. Rxh5 {[%emt 0:00:18]} Ke6 {[%emt 0:00:24]} 51. Rb5 {[%emt 0:00:15]} Ra7 {[%emt 0:00:42]} 52. d5+ {[%emt 0:00:35]} Kd6 {[%emt 0:00:22]} 53. Ke4 {[%emt 0:00:57]} Re7+ {[%emt 0:01:01]} 54. Kd4 {[%emt 0:00:12]} Rg7 {[%emt 0:00:16]} 55. Rb6+ {[%emt 0:00:13]} Kc7 {[%emt 0:00:10]} 56. d6+ {[%emt 0:00:13]} Kc8 {[%emt 0:00:16]} 57. a6 {[%emt 0:00:34]} Rxg4+ {[%emt 0:00:15]} 58. Kd5 {[%emt 0:00:16]} Ra4 {[%emt 0:00:40]} 59. Kc6 {[%emt 0:00:20]} Rc4+ {[%emt 0:00:26]} 60. Kb5 {[%emt 0:00:13]} 1-0

[Event "19th IPCA WCC 2019"]
[Site "Ruzomberok"]
[Date "2019.07.01"]
[Round "4.8"]
[White "Jennitha, Anto K."]
[Black "Tersinsev, Andrey"]
[Result "0-1"]
[ECO "B32"]
[WhiteElo "1972"]
[BlackElo "2164"]
[Annotator "NA"]
[PlyCount "62"]
[EventDate "2019.06.28"]
[EventType "swiss"]
[EventCountry "SVK"]
[SourceTitle "playchess.com"]
[Source "ChessBase"]
[SourceQuality "1"]
[TimeControl "5400+30"]

1. e4 {[%emt 0:00:00]} c5 {[%emt 0:00:00]} 2. Nf3 {[%emt 0:00:00]} Nc6 {[%emt 0:00:00]} 3. d4 {[%emt 0:00:00]} cxd4 {[%emt 0:00:01]} 4. Nxd4 {[%emt 0:00:00]} Qb6 {[%emt 0:00:28]} 5. Nb3 {[%emt 0:00:24]} Nf6 {[%emt 0:00:12]} 6. Nc3 {[%emt 0:00:05]} e6 {[%emt 0:00:32]} 7. Be3 {[%emt 0:00:35]} Qc7 {[%emt 0:00:28]} 8. Bd3 {[%emt 0:03:56]} Be7 {[%emt 0:01:14]} 9. f4 {[%emt 0:01:38]} d6 {[%emt 0:00:12]} 10. Qf3 {[%emt 0:00:56]} O-O {[%emt 0:01:10]} 11. g4 {[%emt 0:04:04]} a6 {[%emt 0:06:17]} 12. O-O-O {[%emt 0:06:11]} Nb4 {[%emt 0:00:31]} 13. Kb1 {[%emt 0:00:40]} b5 {[%emt 0:06:34]} 14. Rhg1 {[%emt 0:13:10]} Bb7 {[%emt 0:01:07]} 15. Qh3 {[%emt 0:07:33]} Rfc8 {[%emt 0:12:20]} 16. Rc1 {[%emt 0:06:34]} Nd7 {[%emt 0:15:40]} 17. g5 {[%emt 0:14:09]} Nc5 {[%emt 0:04:05]} 18. Nxc5 {[%emt 0:16:40]} dxc5 {[%emt 0:01:34]} 19. Rg4 {[%emt 0:00:02]} Nxd3 {[%emt 0:17:34]} 20. cxd3 {[%emt 0:00:03]} Qd8 {[%emt 0:00:57]} 21. Bf2 {[%emt 0:04:45]} c4 {[%emt 0:06:40]} 22. dxc4 {[%emt 0:12:29]} b4 {[%emt 0:00:53]} 23. Rd1 {[%emt 0:01:05]} Bxe4+ {[%emt 0:05:34]} 24. Ka1 {[%emt 0:04:06]} bxc3 {[%emt 0:01:43]} 25. Rxd8+ {[%emt 0:00:26]} Rxd8 {[%emt 0:00:01]} 26. Rg1 {[%emt 0:00:32]} cxb2+ {[%emt 0:00:22]} 27. Kxb2 {[%emt 0:00:15]} Rab8+ {[%emt 0:02:03]} 28. Ka1 {[%emt 0:01:54]} Rd3 {[%emt 0:00:13]} 29. Qg4 {[%emt 0:01:04]} Ba3 {[%emt 0:00:49]} 30. Rb1 {[%emt 0:01:05]} Rxb1+ {[%emt 0:00:12]} 31. Kxb1 {[%emt 0:00:05]} Rd1# {[%emt 0:00:07]} 0-1

[Event "19th IPCA WCC 2019"]
[Site "Ruzomberok"]
[Date "2019.07.01"]
[Round "4.9"]
[White "Obodchuk, Andrei"]
[Black "Matana, Zoran"]
[Result "1-0"]
[ECO "D30"]
[WhiteElo "2316"]
[BlackElo "1818"]
[Annotator "NA"]
[PlyCount "59"]
[EventDate "2019.06.28"]
[EventType "swiss"]
[EventCountry "SVK"]
[SourceTitle "playchess.com"]
[Source "ChessBase"]
[SourceQuality "1"]
[TimeControl "5400+30"]

1. d4 {[%emt 0:00:00]} d5 {[%emt 0:00:00]} 2. c4 {[%emt 0:00:00]} e6 {[%emt 0:00:40]} 3. Nf3 {[%emt 0:00:00]} Nf6 {[%emt 0:00:14]} 4. g3 {[%emt 0:00:28]} Ne4 {[%emt 0:01:28]} 5. Bg2 {[%emt 0:00:12]} Nc6 {[%emt 0:00:55]} 6. O-O {[%emt 0:00:10]} Be7 {[%emt 0:00:23]} 7. Nc3 {[%emt 0:02:44]} Nxc3 {[%emt 0:01:23]} 8. bxc3 {[%emt 0:00:01]} O-O {[%emt 0:00:25]} 9. Nd2 {[%emt 0:01:20]} f5 {[%emt 0:00:42]} 10. cxd5 {[%emt 0:00:20]} exd5 {[%emt 0:00:59]} 11. Qb3 {[%emt 0:00:11]} Kh8 {[%emt 0:01:52]} 12. Qxd5 {[%emt 0:00:11]} Qxd5 {[%emt 0:01:53]} 13. Bxd5 {[%emt 0:00:02]} Bd6 {[%emt 0:00:26]} 14. Nc4 {[%emt 0:00:07]} Ne7 {[%emt 0:00:42]} 15. Bf3 {[%emt 0:00:11]} a5 {[%emt 0:02:03]} 16. Rb1 {[%emt 0:00:14]} Ra7 {[%emt 0:01:14]} 17. Nxd6 {[%emt 0:00:42]} cxd6 {[%emt 0:00:54]} 18. Rb6 {[%emt 0:00:09]} Ra6 {[%emt 0:04:57]} 19. Rxa6 {[%emt 0:00:06]} bxa6 {[%emt 0:00:08]} 20. Bf4 {[%emt 0:00:34]} Rd8 {[%emt 0:00:18]} 21. Bg5 {[%emt 0:00:29]} Re8 {[%emt 0:01:13]} 22. Rb1 {[%emt 0:00:05]} h6 {[%emt 0:00:49]} 23. Bf4 {[%emt 0:01:36]} Rd8 {[%emt 0:00:13]} 24. Rb8 {[%emt 0:00:58]} g5 {[%emt 0:00:30]} 25. Bd2 {[%emt 0:00:07]} d5 {[%emt 0:02:58]} 26. Rb6 {[%emt 0:01:25]} Kg7 {[%emt 0:00:20]} 27. h4 {[%emt 0:00:11]} gxh4 {[%emt 0:05:37]} 28. Bxh6+ {[%emt 0:00:11]} Kh7 {[%emt 0:01:46]} 29. Bg5 {[%emt 0:00:10]} Rd7 {[%emt 0:00:32]} 30. gxh4 {[%emt 0:01:26]} 1-0

[Event "19th IPCA WCC 2019"]
[Site "Ruzomberok"]
[Date "2019.07.01"]
[Round "4.10"]
[White "Kovacevic, Krsto"]
[Black "Alekseev, Mikhail"]
[Result "1/2-1/2"]
[ECO "B12"]
[WhiteElo "2049"]
[BlackElo "1869"]
[Annotator "NA"]
[PlyCount "42"]
[EventDate "2019.06.28"]
[EventType "swiss"]
[EventCountry "SVK"]
[SourceTitle "playchess.com"]
[Source "ChessBase"]
[SourceQuality "1"]
[TimeControl "5400+30"]

1. e4 {[%emt 0:00:00]} c6 {[%emt 0:00:00]} 2. d4 {[%emt 0:00:00]} d5 {[%emt 0:00:41]} 3. e5 {[%emt 0:00:02]} c5 {[%emt 0:00:52]} 4. dxc5 {[%emt 0:00:15]} Nc6 {[%emt 0:02:21]} 5. Nf3 {[%emt 0:00:12]} Bg4 {[%emt 0:01:34]} 6. c3 {[%emt 0:00:21]} e6 {[%emt 0:01:46]} 7. b4 {[%emt 0:00:33]} Bxf3 {[%emt 0:02:28]} 8. Qxf3 {[%emt 0:00:35]} Nxe5 {[%emt 0:01:20]} 9. Bb5+ {[%emt 0:00:13]} Nc6 {[%emt 0:00:42]} 10. O-O {[%emt 0:01:59]} Nf6 {[%emt 0:03:50]} 11. Bf4 {[%emt 0:05:51]} Be7 {[%emt 0:01:11]} 12. Nd2 {[%emt 0:02:11]} O-O {[%emt 0:00:59]} 13. Rfe1 {[%emt 0:01:16]} Rc8 {[%emt 0:11:47]} 14. Rad1 {[%emt 0:01:11]} a6 {[%emt 0:01:22]} 15. Bf1 {[%emt 0:02:24]} Nd7 {[%emt 0:02:37]} 16. Nb3 {[%emt 0:12:36]} Bg5 {[%emt 0:05:55]} 17. Bd6 {[%emt 0:03:50]} Be7 {[%emt 0:06:23]} 18. Bg3 {[%emt 0:14:55]} Bh4 {[%emt 0:01:32]} 19. Bd6 {[%emt 0:08:10]} Be7 {[%emt 0:00:23]} 20. Bg3 {[%emt 0:12:05]} Bh4 {[%emt 0:00:15]} 21. Bd6 {[%emt 0:09:06]} Be7 {[%emt 0:00:18]} 1/2-1/2

[Event "19th IPCA WCC 2019"]
[Site "Ruzomberok"]
[Date "2019.07.01"]
[Round "4.11"]
[White "Wielecki, Zygmunt"]
[Black "Tsapalin, Sergey"]
[Result "0-1"]
[ECO "A46"]
[WhiteElo "2145"]
[BlackElo "1935"]
[Annotator "NA"]
[PlyCount "38"]
[EventDate "2019.06.28"]
[EventType "swiss"]
[EventCountry "SVK"]
[SourceTitle "playchess.com"]
[Source "ChessBase"]
[SourceQuality "1"]
[TimeControl "5400+30"]

1. d4 {[%emt 0:00:00]} Nf6 {[%emt 0:00:00]} 2. Nf3 {[%emt 0:00:21]} e6 {[%emt 0:00:00]} 3. Bg5 {[%emt 0:00:31]} h6 {[%emt 0:00:11]} 4. Bxf6 {[%emt 0:00:42]} Qxf6 {[%emt 0:00:06]} 5. e4 d5 {[%emt 0:00:34]} 6. e5 {[%emt 0:00:55]} Qd8 {[%emt 0:00:09]} 7. Bd3 {[%emt 0:01:03]} c5 {[%emt 0:00:29]} 8. c3 {[%emt 0:00:44]} Nc6 {[%emt 0:00:20]} 9. O-O {[%emt 0:01:08]} Qb6 {[%emt 0:00:41]} 10. b3 {[%emt 0:07:43]} cxd4 {[%emt 0:01:01]} 11. cxd4 {[%emt 0:00:16]} Bd7 {[%emt 0:00:10]} 12. Be2 {[%emt 0:01:26]} Bb4 {[%emt 0:01:24]} 13. a3 {[%emt 0:00:28]} Be7 {[%emt 0:00:06]} 14. b4 {[%emt 0:03:52]} O-O {[%emt 0:01:04]} 15. Nc3 {[%emt 0:00:47]} Qd8 {[%emt 0:10:06]} 16. Ne1 {[%emt 0:10:21]} Rc8 {[%emt 0:00:49]} 17. Rc1 {[%emt 0:02:33]} f6 {[%emt 0:06:34]} 18. f4 {[%emt 0:16:11]} fxe5 {[%emt 0:00:26]} 19. fxe5 {[%emt 0:00:07]} Bg5 {[%emt 0:00:24]} 0-1

[Event "19th IPCA WCC 2019"]
[Site "Ruzomberok"]
[Date "2019.07.01"]
[Round "4.12"]
[White "Tebenkov, Vladislav"]
[Black "Kaydanovich, Marina"]
[Result "1-0"]
[ECO "C67"]
[WhiteElo "2096"]
[BlackElo "1760"]
[Annotator "NA"]
[PlyCount "51"]
[EventDate "2019.06.28"]
[EventType "swiss"]
[EventCountry "SVK"]
[SourceTitle "playchess.com"]
[Source "ChessBase"]
[SourceQuality "1"]
[TimeControl "5400+30"]

1. e4 {[%emt 0:00:00]} e5 {[%emt 0:00:00]} 2. Nf3 {[%emt 0:00:00]} Nc6 {[%emt 0:00:00]} 3. Bb5 {[%emt 0:00:00]} Nf6 {[%emt 0:00:05]} 4. O-O {[%emt 0:00:00]} Nxe4 {[%emt 0:00:12]} 5. d4 {[%emt 0:00:39]} Nd6 {[%emt 0:00:13]} 6. dxe5 {[%emt 0:02:25]} Nxb5 {[%emt 0:00:46]} 7. a4 {[%emt 0:00:04]} Nbd4 {[%emt 0:02:36]} 8. Nxd4 {[%emt 0:00:12]} Nxd4 {[%emt 0:00:27]} 9. Qxd4 {[%emt 0:00:05]} Be7 {[%emt 0:00:14]} 10. Nc3 {[%emt 0:07:27]} O-O {[%emt 0:04:16]} 11. Nd5 {[%emt 0:01:49]} b6 {[%emt 0:01:22]} 12. Bf4 {[%emt 0:15:33]} Bb7 {[%emt 0:02:01]} 13. Nxe7+ {[%emt 0:00:57]} Qxe7 {[%emt 0:00:03]} 14. Ra3 {[%emt 0:00:27]} c5 {[%emt 0:01:08]} 15. Qd2 {[%emt 0:02:49]} Bc6 {[%emt 0:01:32]} 16. Rg3 {[%emt 0:06:49]} Kh8 {[%emt 0:00:31]} 17. Re1 {[%emt 0:11:37]} Qe6 {[%emt 0:03:25]} 18. b3 {[%emt 0:01:24]} Rae8 {[%emt 0:01:17]} 19. Kf1 {[%emt 0:10:15]} Qd5 {[%emt 0:03:34]} 20. Qe2 {[%emt 0:02:16]} Re6 {[%emt 0:17:16]} 21. Rd1 {[%emt 0:04:35]} Qe4 {[%emt 0:00:12]} 22. Qxe4 {[%emt 0:00:16]} Bxe4 {[%emt 0:00:03]} 23. Rxd7 {[%emt 0:00:05]} Bxc2 {[%emt 0:00:51]} 24. Rxa7 {[%emt 0:00:15]} Kg8 {[%emt 0:02:15]} 25. Rc3 {[%emt 0:03:03]} Bg6 {[%emt 0:00:03]} 26. a5 {[%emt 0:00:57]} 1-0

[Event "19th IPCA WCC 2019"]
[Site "Ruzomberok"]
[Date "2019.07.01"]
[Round "4.13"]
[White "Samarth J Rao"]
[Black "Lipilin, Ilia"]
[Result "0-1"]
[ECO "B26"]
[WhiteElo "1593"]
[BlackElo "2084"]
[Annotator "NA"]
[PlyCount "116"]
[EventDate "2019.06.28"]
[EventType "swiss"]
[EventCountry "SVK"]
[SourceTitle "playchess.com"]
[Source "ChessBase"]
[SourceQuality "1"]
[TimeControl "5400+30"]

1. e4 {[%emt 0:00:00]} c5 {[%emt 0:00:00]} 2. Nc3 {[%emt 0:00:00]} Nc6 {[%emt 0:00:00]} 3. g3 {[%emt 0:00:00]} g6 {[%emt 0:00:00]} 4. Bg2 {[%emt 0:00:04]} Bg7 {[%emt 0:00:00]} 5. d3 {[%emt 0:00:08]} d6 {[%emt 0:00:07]} 6. Be3 {[%emt 0:00:11]} e5 {[%emt 0:00:17]} 7. Qd2 a6 {[%emt 0:00:41]} 8. Nge2 {[%emt 0:00:26]} Be6 {[%emt 0:00:11]} 9. Nd5 {[%emt 0:00:23]} Nge7 {[%emt 0:03:58]} 10. Bh6 {[%emt 0:02:16]} O-O {[%emt 0:01:22]} 11. h4 Bxd5 {[%emt 0:01:01]} 12. exd5 {[%emt 0:00:44]} Bxh6 {[%emt 0:00:23]} 13. Qxh6 {[%emt 0:00:22]} Nf5 {[%emt 0:00:08]} 14. Qd2 Ncd4 {[%emt 0:00:50]} 15. Nc3 {[%emt 0:01:26]} Ng7 {[%emt 0:02:50]} 16. g4 {[%emt 0:02:03]} f5 {[%emt 0:09:09]} 17. h5 {[%emt 0:01:14]} f4 {[%emt 0:02:34]} 18. Be4 g5 {[%emt 0:01:09]} 19. h6 {[%emt 0:01:17]} Ne8 {[%emt 0:00:07]} 20. Rh5 {[%emt 0:00:31]} Kh8 {[%emt 0:00:08]} 21. O-O-O {[%emt 0:02:45]} Nf6 {[%emt 0:03:49]} 22. Rhh1 {[%emt 0:08:42]} b5 {[%emt 0:00:42]} 23. Bf5 {[%emt 0:04:40]} b4 {[%emt 0:15:36]} 24. Ne4 Nxd5 {[%emt 0:00:36]} 25. c4 {[%emt 0:06:02]} bxc3 {[%emt 0:04:39]} 26. bxc3 {[%emt 0:00:51]} Nf3 {[%emt 0:06:08]} 27. Qe2 {[%emt 0:01:37]} Nh4 {[%emt 0:00:19]} 28. d4 {[%emt 0:01:31]} Qa5 {[%emt 0:10:00]} 29. dxe5 {[%emt 0:10:18]} Nxc3 30. Nxc3 {[%emt 0:01:11]} Qxc3+ {[%emt 0:00:49]} 31. Bc2 {[%emt 0:01:19]} Qa1+ {[%emt 0:08:46]} 32. Kd2 {[%emt 0:00:34]} Qxe5 {[%emt 0:00:14]} 33. Qxe5+ {[%emt 0:02:31]} dxe5 {[%emt 0:01:34]} 34. Kc3 {[%emt 0:00:21]} Rfd8 {[%emt 0:06:14]} 35. Kc4 {[%emt 0:01:21]} Rd4+ {[%emt 0:01:03]} 36. Rxd4 {[%emt 0:01:34]} cxd4 {[%emt 0:00:11]} 37. Kd5 {[%emt 0:00:41]} Rd8+ {[%emt 0:03:27]} 38. Kxe5 {[%emt 0:00:51]} d3 {[%emt 0:00:07]} 39. Rd1 Re8+ {[%emt 0:01:56]} 40. Kf6 {[%emt 0:04:19]} dxc2 {[%emt 0:00:06]} 41. Rc1 {[%emt 0:00:22]} Rc8 {[%emt 0:00:16]} 42. Kxg5 {[%emt 0:00:51]} Ng2 {[%emt 0:00:07]} 43. Kf5 {[%emt 0:00:43]} Ne1 {[%emt 0:00:24]} 44. Ke4 {[%emt 0:00:25]} Kg8 {[%emt 0:00:06]} 45. Rxe1 Re8+ {[%emt 0:00:14]} 46. Kd3 {[%emt 0:02:43]} Rxe1 {[%emt 0:00:08]} 47. Kxc2 Re2+ {[%emt 0:00:05]} 48. Kd3 {[%emt 0:01:13]} Rxf2 {[%emt 0:00:04]} 49. a4 {[%emt 0:00:28]} a5 {[%emt 0:00:07]} 50. Ke4 {[%emt 0:00:11]} Kf7 {[%emt 0:00:09]} 51. Kf5 {[%emt 0:00:26]} f3 {[%emt 0:00:08]} 52. Kf4 {[%emt 0:00:13]} Kg6 {[%emt 0:00:10]} 53. g5 {[%emt 0:00:14]} Rf1 {[%emt 0:00:07]} 54. Kg4 {[%emt 0:00:07]} f2 {[%emt 0:00:16]} 55. Kf3 {[%emt 0:00:16]} Kxg5 {[%emt 0:00:11]} 56. Kg2 {[%emt 0:00:06]} Ra1 {[%emt 0:00:20]} 57. Kxf2 {[%emt 0:00:10]} Ra3 {[%emt 0:00:10]} 58. Ke2 {[%emt 0:00:13]} Kf4 {[%emt 0:00:09]} 0-1

[Event "19th IPCA WCC 2019"]
[Site "Ruzomberok"]
[Date "2019.07.01"]
[Round "4.14"]
[White "Gerasimova, Svetlana"]
[Black "Felegyi, Karoly"]
[Result "1-0"]
[ECO "C55"]
[WhiteElo "1913"]
[BlackElo "1674"]
[Annotator "NA"]
[PlyCount "93"]
[EventDate "2019.06.28"]
[EventType "swiss"]
[EventCountry "SVK"]
[SourceTitle "playchess.com"]
[Source "ChessBase"]
[SourceQuality "1"]
[TimeControl "5400+30"]

1. e4 {[%emt 0:00:00]} e5 {[%emt 0:00:00]} 2. Nf3 {[%emt 0:00:00]} Nc6 {[%emt 0:00:02]} 3. Bc4 {[%emt 0:00:00]} Nf6 {[%emt 0:00:32]} 4. d3 {[%emt 0:00:00]} h6 {[%emt 0:00:46]} 5. c3 {[%emt 0:00:20]} d6 {[%emt 0:00:59]} 6. a4 {[%emt 0:05:08]} Na5 {[%emt 0:10:17]} 7. Ba2 {[%emt 0:00:21]} Be6 {[%emt 0:00:19]} 8. Bxe6 {[%emt 0:04:44]} fxe6 {[%emt 0:00:10]} 9. Nh4 {[%emt 0:00:15]} Qd7 {[%emt 0:02:53]} 10. b4 {[%emt 0:01:38]} Nc6 {[%emt 0:00:10]} 11. Ng6 {[%emt 0:00:22]} Rg8 {[%emt 0:01:12]} 12. a5 {[%emt 0:01:16]} a6 {[%emt 0:00:44]} 13. O-O {[%emt 0:04:09]} Qf7 {[%emt 0:00:54]} 14. Nxf8 {[%emt 0:01:59]} Rxf8 {[%emt 0:00:04]} 15. Be3 {[%emt 0:00:16]} g5 {[%emt 0:09:36]} 16. Nd2 {[%emt 0:04:29]} Qh5 {[%emt 0:06:52]} 17. Qxh5+ {[%emt 0:08:19]} Nxh5 18. g3 Nf6 {[%emt 0:01:56]} 19. f3 {[%emt 0:04:20]} d5 {[%emt 0:07:11]} 20. Bc5 {[%emt 0:07:16]} Rf7 {[%emt 0:00:14]} 21. Rfb1 {[%emt 0:00:32]} Nd7 {[%emt 0:09:26]} 22. Bf2 {[%emt 0:05:57]} Nf6 {[%emt 0:11:15]} 23. Kg2 {[%emt 0:02:55]} g4 {[%emt 0:03:42]} 24. fxg4 {[%emt 0:08:16]} Nxg4 {[%emt 0:00:59]} 25. Bg1 {[%emt 0:00:03]} O-O-O {[%emt 0:12:40]} 26. h3 {[%emt 0:04:35]} Nf6 {[%emt 0:01:06]} 27. Be3 {[%emt 0:01:57]} h5 {[%emt 0:00:32]} 28. b5 {[%emt 0:03:30]} Nb8 {[%emt 0:00:15]} 29. b6 c6 30. Rf1 {[%emt 0:01:39]} Rdf8 {[%emt 0:00:33]} 31. Bh6 {[%emt 0:04:41]} Rg8 {[%emt 0:02:45]} 32. Rf3 {[%emt 0:01:02]} Rg6 {[%emt 0:00:26]} 33. Be3 {[%emt 0:00:18]} Nbd7 {[%emt 0:00:41]} 34. Raf1 {[%emt 0:02:13]} Rfg7 35. Kf2 {[%emt 0:06:07]} Rg8 {[%emt 0:07:14]} 36. Rg1 {[%emt 0:01:44]} h4 {[%emt 0:00:22]} 37. g4 {[%emt 0:03:33]} Nh5 {[%emt 0:00:17]} 38. Nf1 {[%emt 0:01:36]} dxe4 {[%emt 0:01:46]} 39. dxe4 {[%emt 0:00:52]} Ndf6 {[%emt 0:00:07]} 40. gxh5 {[%emt 0:04:43]} Nxe4+ {[%emt 0:01:20]} 41. Ke2 {[%emt 0:00:39]} Rg2+ {[%emt 0:00:05]} 42. Kd3 {[%emt 0:00:35]} Rxg1 {[%emt 0:02:07]} 43. Bxg1 {[%emt 0:00:09]} Nd6 {[%emt 0:01:13]} 44. Nd2 {[%emt 0:02:52]} Rxg1 {[%emt 0:00:55]} 45. Rf8+ {[%emt 0:00:06]} Kd7 {[%emt 0:00:08]} 46. h6 {[%emt 0:00:16]} Rg3+ {[%emt 0:00:51]} 47. Kc2 1-0